bitfinex-derivatives/quotes_SOLF0:USTF0_20240920
["timestamp","ask_amount","ask_price","bid_price","bid_amount"]
[1726844964517,3.3923,147.37,147.29,9.4936]
[1726844964719,3.3923,147.37,147.34,3.3927]
[1726844964921,3.3921,147.38,147.33,3.43683811]
[1726844965221,3.3921,147.38,147.35,3.53]
[1726844965613,20.85,147.4,147.35,3.53]
[1726844965814,3.35562327,147.46,147.35,3.53]
[1726844965815,20.85,147.43,147.35,3.53]
[1726844966019,20.85,147.43,147.37,3.3922]
[1726844966214,3.3913,147.42,147.36,2.6949]
[1726844966421,20.85,147.45,147.36,2.6949]
[1726844966614,20.85,147.45,147.37,1.3428]
[1726844967621,20.85,147.45,147.39,3.3917]
[1726844967822,20.85,147.45,147.37,1.3428]
[1726844968207,3.3914,147.41,147.38,3.3919]
[1726844968617,3.3912,147.42,147.39,3.3918]
[1726844968818,20.85,147.45,147.39,3.3918]
[1726844969217,20.85,147.45,147.37,1.3428]
[1726844969417,24.24475992,147.48,147.37,1.3428]
[1726844969824,24.24475992,147.48,147.4,3.3914]
[1726844970014,24.24475992,147.48,147.37,1.3428]
[1726844970223,3.3909,147.43,147.4,3.3914]
[1726844970920,24.24475992,147.48,147.37,1.3428]
[1726844971116,20.85,147.45,147.37,1.3428]
[1726844971509,3.3915,147.41,147.38,3.3919]
[1726844972920,20.85,147.45,147.38,3.3919]
[1726844973627,3.3915,147.41,147.38,3.3919]
[1726844974417,3.3916,147.4,147.38,3.3919]
[1726844974629,20.85,147.45,147.38,3.3919]
[1726844974824,20.85,147.45,147.39,3.3918]
[1726844975037,3.3912,147.42,147.39,3.3918]
[1726844976214,3.3917,147.4,147.39,5.42]
[1726844977121,3.3917,147.4,147.39,10.84]
[1726844978127,3.3915,147.41,147.39,10.84]
[1726844978515,20.85,147.45,147.39,19.6517]
[1726844978719,20.85,147.45,147.39,16.26]
[1726844979133,20.85,147.45,147.4,3.3916]
[1726844979331,3.3912,147.42,147.39,16.26]
[1726844980031,23.78475992,147.48,147.39,16.26]
[1726844980032,20.85,147.48,147.39,16.26]
[1726844980230,13.03,147.48,147.39,16.26]
[1726844980437,3.3906,147.45,147.42,3.391]
[1726844980825,13.03,147.48,147.39,16.26]
[1726844981028,3.3909,147.43,147.39,16.26]
[1726844981330,13.03,147.46,147.39,16.26]
[1726844981526,13.03,147.46,147.4,3.3916]
[1726844982133,3.3911,147.43,147.4,3.3916]
[1726844982331,3.3911,147.43,147.39,16.26]
[1726844983131,3.3907,147.44,147.41,3.3912]
[1726844983332,41.22,147.5,147.39,16.26]
[1726844983526,41.22,147.5,147.4,1.2977]
[1726844984727,3.3906,147.45,147.42,3.391]
[1726844984928,6.7765,147.55,147.4,1.2977]
[1726844985124,20.83,147.52,147.4,1.2977]
[1726844985835,20.83,147.52,147.43,3.3907]
[1726844986135,41.22,147.52,147.43,3.3907]
[1726844986537,3.3903,147.46,147.43,6.1396]
[1726844986952,3.3905,147.45,147.43,2.7489]
[1726844988857,3.3907,147.44,147.43,2.7489]
[1726844991862,3.3907,147.44,147.43,6.2789]
[1726844992359,3.3907,147.44,147.43,3.53]
[1726844994160,3.3907,147.44,147.43,8.95]
[1726844996966,3.3907,147.44,147.43,14.37]
[1726844998062,3.3906,147.45,147.43,14.37]
[1726844998762,3.3904,147.45,147.43,14.37]
[1726844999561,3.3907,147.44,147.43,14.37]
[1726845000360,3.3905,147.45,147.43,14.37]
[1726845000558,41.22,147.5,147.43,14.37]
[1726845000756,20.83,147.5,147.43,14.37]
[1726845001072,20.39,147.53,147.44,2.7662]
[1726845001267,20.39,147.53,147.46,3.3901]
[1726845001868,20.83,147.54,147.44,2.7662]
[1726845002070,13.02,147.54,147.44,15.7862]
[1726845002570,13.02,147.52,147.44,2.7662]
[1726845003174,3.3896,147.49,147.44,2.7662]
[1726845003566,3.3893,147.5,147.44,2.7662]
[1726845003772,13.02,147.54,147.44,21.2062]
[1726845004274,3.3889,147.52,147.49,3.3893]
[1726845004462,13.02,147.54,147.44,21.2062]
[1726845004666,13.02,147.57,147.46,13.02]
[1726845004863,3.3883,147.55,147.48,13.02]
[1726845005265,13.02,147.57,147.49,1.3339]
[1726845005466,3.3884,147.54,147.51,3.3889]
[1726845005667,13.02,147.57,147.49,1.3339]
[1726845006067,3.3887,147.53,147.5,6.71937542]
[1726845006267,13.02,147.57,147.49,1.3339]
[1726845006671,3.3884,147.55,147.51,3.389]
[1726845006872,3.3884,147.55,147.51,6.74086816]
[1726845007268,3.3884,147.54,147.51,6.74086816]
[1726845007467,13.02,147.57,147.51,3.35186816]
[1726845007770,13.02,147.57,147.49,1.3339]
[1726845008075,13.02,147.57,147.51,4.7318]
[1726845008278,13.02,147.57,147.51,8.06536491]
[1726845008474,3.3886,147.53,147.51,4.67636491]
[1726845008660,13.02,147.57,147.51,1.3428]
[1726845009671,3.3888,147.52,147.51,4.8728]
[1726845010567,3.3886,147.53,147.51,10.2928]
[1726845010973,13.02,147.57,147.51,11.621]
[1726845011973,3.3884,147.54,147.51,15.0099]
[1726845012565,13.02,147.59,147.51,11.621]
[1726845012977,3.37593484,147.61,147.51,11.621]
[1726845012978,13.02,147.61,147.51,11.621]
[1726845013172,3.3878,147.57,147.54,3.3883]
[1726845013478,13.02,147.61,147.51,11.621]
[1726845013672,3.3881,147.56,147.51,11.621]
[1726845014281,13.02,147.57,147.51,11.621]
[1726845015173,3.3887,147.53,147.51,11.621]
[1726845015377,13.02,147.57,147.51,11.621]
[1726845015584,13.02,147.57,147.51,15.0099]
[1726845016280,13.02,147.59,147.51,11.621]
[1726845016778,3.3878,147.57,147.54,3.3883]
[1726845016973,13.02,147.62,147.54,3.3883]
[1726845017284,13.02,147.62,147.51,17.041]
[1726845017285,3.388,147.56,147.53,3.3885]
[1726845017672,3.388,147.56,147.54,3.3883]
[1726845017986,3.388,147.56,147.51,17.041]
[1726845018170,3.388,147.56,147.53,3.3884]
[1726845018370,3.3878,147.57,147.51,17.041]
[1726845018574,13.02,147.62,147.51,30.061]
[1726845018781,13.02,147.62,147.55,3.3881]
[1726845018970,3.3876,147.58,147.55,3.3881]
[1726845019478,13.02,147.64,147.54,13.02]
[1726845019780,13.02,147.64,147.55,1.3086]
[1726845019979,13.02,147.64,147.59,3.3871]
[1726845020782,13.02,147.64,147.55,1.3086]
[1726845021983,13.02,147.66,147.55,14.3286]
[1726845022371,13.02,147.68,147.58,13.02]
[1726845022686,13.02,147.68,147.59,2.6387]
[1726845022986,13.02,147.68,147.64,3.3859]
[1726845023482,13.02,147.68,147.59,2.6387]
[1726845024074,13.02,147.68,147.63,3.3862]
[1726845024379,13.02,147.66,147.59,2.6387]
[1726845024772,3.386,147.65,147.62,3.3864]
[1726845024972,13.02,147.66,147.59,2.6387]
[1726845025280,3.3861,147.64,147.61,3.3866]
[1726845025489,3.3861,147.64,147.62,5.41]
[1726845025785,13.02,147.66,147.63,3.3863]
[1726845027082,3.3857,147.66,147.63,3.3863]
[1726845028486,3.3857,147.66,147.64,3.3861]
[1726845028682,3.3855,147.67,147.64,3.3861]
[1726845030187,13.02,147.7,147.62,5.41]
[1726845030687,13.02,147.74,147.63,14.3057]
[1726845030887,3.3841,147.73,147.7,3.3845]
[1726845031088,13.02,147.76,147.65,13.02]
[1726845031275,13.02,147.76,147.7,5.41]
[1726845031991,3.3836,147.75,147.72,3.3841]
[1726845032294,13.02,147.76,147.7,5.41]
[1726845032481,3.3839,147.74,147.7,8.7945]
[1726845032781,13.02,147.76,147.7,8.7945]
[1726845033181,13.02,147.76,147.71,3.3844]
[1726845033389,16.4035,147.76,147.7,5.41]
[1726845033884,3.3835,147.76,147.72,3.384]
[1726845034090,13.02,147.78,147.7,5.41]
[1726845034296,13.02,147.78,147.73,3.3838]
[1726845034480,3.3831,147.77,147.73,3.3838]
[1726845034892,13.02,147.78,147.71,3.3844]
[1726845035089,13.02,147.78,147.7,5.41]
[1726845035090,13.02,147.76,147.7,5.41]
[1726845035477,3.32227896,147.81,147.7,5.41]
[1726845035478,13.02,147.78,147.7,5.41]
[1726845035686,3.3832,147.77,147.7,5.41]
[1726845035889,13.02,147.78,147.7,5.41]
[1726845036087,3.3831,147.77,147.72,3.3841]
[1726845036289,13.02,147.8,147.7,5.41]
[1726845036485,13.02,147.8,147.7,18.43]
[1726845036883,3.3831,147.77,147.7,18.43]
[1726845037492,3.3834,147.76,147.7,18.43]
[1726845037889,13.02,147.79,147.73,3.3838]
[1726845038284,13.02,147.79,147.73,8.7938]
[1726845038787,3.3832,147.77,147.73,8.7938]
[1726845038988,13.02,147.79,147.73,5.41]
[1726845039388,3.3833,147.77,147.73,5.41]
[1726845039790,3.3835,147.75,147.73,5.41]
[1726845040392,3.3834,147.76,147.73,5.41]
[1726845040998,16.4031,147.77,147.73,8.794]
[1726845041506,13.02,147.77,147.73,5.41]
[1726845042506,16.4032,147.77,147.73,8.794]
[1726845043396,3.3829,147.78,147.74,3.3837]
[1726845043600,13.02,147.79,147.74,2.7803]
[1726845044192,13.02,147.77,147.74,2.7803]
[1726845044498,3.31404711,147.82,147.7,5.41]
[1726845044499,13.02,147.75,147.7,5.41]
[1726845044805,20.39,147.79,147.7,5.41]
[1726845044806,13.02,147.73,147.7,5.41]
[1726845045388,3.38739145,147.76,147.67,2.7803]
[1726845045389,16.4045,147.71,147.67,2.7803]
[1726845045592,13.02,147.71,147.67,2.7803]
[1726845046097,3.3849,147.69,147.67,2.7803]
[1726845046297,13.02,147.71,147.67,7.4003]
[1726845046499,3.3848,147.7,147.67,7.4003]
[1726845047499,13.02,147.71,147.67,7.4003]
[1726845047700,13.02,147.75,147.67,10.71998424]
[1726845047898,3.3838,147.74,147.71,3.3845]
[1726845048197,13.02,147.73,147.67,14.24998424]
[1726845048398,13.02,147.73,147.67,14.3155]
[1726845048399,3.3846,147.71,147.67,14.3155]
[1726845048705,13.02,147.73,147.67,10.9303]
[1726845048999,16.404,147.73,147.69,3.3847]
[1726845049304,13.02,147.75,147.67,10.9303]
[1726845049698,3.3838,147.74,147.67,10.9303]
[1726845051505,3.3836,147.75,147.71,3.3843]
[1726845052095,20.8,147.77,147.7,3.3846]
[1726845052096,3.3839,147.74,147.7,3.3846]
[1726845052297,20.8,147.74,147.67,10.9303]
[1726845052608,20.8,147.74,147.67,14.3157]
[1726845052801,20.8,147.74,147.67,10.9303]
[1726845053508,3.3842,147.72,147.68,3.3851]
[1726845053804,20.8,147.74,147.68,3.3851]
[1726845054005,3.3848,147.7,147.67,10.9303]
[1726845054213,20.8,147.74,147.67,10.9303]
[1726845054593,3.3846,147.71,147.67,14.3155]
[1726845054793,3.3846,147.71,147.67,10.9303]
[1726845054998,20.8,147.74,147.67,10.9303]
[1726845055204,41.19,147.77,147.69,3.3848]
[1726845055393,41.19,147.77,147.67,10.9303]
[1726845055593,3.3841,147.73,147.67,10.9303]
[1726845055996,3.3841,147.73,147.67,16.3403]
[1726845056193,41.13,147.77,147.67,16.3403]
[1726845056800,3.3848,147.7,147.67,16.3403]
[1726845057002,20.8,147.72,147.67,16.3403]
[1726845057197,20.8,147.72,147.67,19.2903]
[1726845057708,20.8,147.72,147.67,16.51]
[1726845058911,41.13,147.77,147.67,16.51]
[1726845059511,3.3843,147.72,147.69,3.3849]
[1726845059810,41.13,147.77,147.67,16.51]
[1726845060107,20.8,147.72,147.67,16.51]
[1726845060308,3.3846,147.71,147.67,19.8952]
[1726845060513,20.8,147.72,147.67,19.8952]
[1726845060903,3.3849,147.69,147.67,16.51]
[1726845061099,20.8,147.72,147.67,16.51]
[1726845061406,3.385,147.69,147.67,16.51]
[1726845062309,20.8,147.72,147.67,16.51]
[1726845062905,3.3849,147.69,147.67,16.51]
[1726845063526,3.3848,147.7,147.67,16.51]
[1726845063816,20.8,147.72,147.67,16.51]
[1726845064503,20.8,147.69,147.62,2.7555]
[1726845064700,20.8,147.65,147.62,1.4117]
[1726845064916,20.8,147.65,147.58,1.3033]
[1726845064917,3.3868,147.61,147.58,1.3033]
[1726845065118,20.8,147.65,147.58,2.6289]
[1726845066014,3.3864,147.63,147.58,6.0162]
[1726845066324,3.3864,147.63,147.59,5.42]
[1726845066703,20.8,147.65,147.59,5.42]
[1726845067007,20.8,147.7,147.59,5.42]
[1726845067205,20.8,147.7,147.6,3.3867]
[1726845067406,20.8,147.7,147.59,5.42]
[1726845067614,20.8,147.7,147.6,1.3223]
[1726845067815,24.21937347,147.7,147.6,1.3223]
[1726845068015,3.3855,147.67,147.62,3.3864]
[1726845068215,24.21937347,147.7,147.62,3.3864]
[1726845068419,44.54937347,147.7,147.6,1.3223]
[1726845068810,44.54937347,147.7,147.59,5.42]
[1726845069011,20.8,147.64,147.59,5.42]
[1726845070311,3.3865,147.63,147.59,5.42]
[1726845070513,3.3865,147.63,147.59,8.8071]
[1726845070712,20.8,147.67,147.59,5.42]
[1726845070911,44.54937347,147.7,147.59,6.7969]
[1726845071212,44.54937347,147.7,147.61,3.3867]
[1726845071412,20.8,147.67,147.59,6.7969]
[1726845072221,3.3865,147.62,147.59,6.7969]
[1726845072519,41.13,147.67,147.59,6.7969]
[1726845072723,20.8,147.65,147.59,6.7969]
[1726845072914,20.8,147.65,147.59,5.42]
[1726845073924,13.02,147.65,147.59,5.42]
[1726845074427,16.43937347,147.7,147.59,5.42]
[1726845074428,13.02,147.6,147.59,5.42]
[1726845075312,16.407,147.6,147.59,5.42]
[1726845075920,13.02,147.6,147.52,1.316]
[1726845076116,13.02,147.59,147.53,2.7048]
[1726845076724,13.02,147.56,147.53,2.7048]
[1726845077718,16.4081,147.56,147.53,2.7048]
[1726845078323,3.3881,147.55,147.53,2.7048]
[1726845078620,13.02,147.54,147.46,3.34577138]
[1726845078816,13.02,147.52,147.47,2.7208]
[1726845079018,3.3891,147.51,147.47,2.7208]
[1726845079417,13.02,147.5,147.47,2.7208]
[1726845079615,3.3897,147.48,147.47,2.7208]
[1726845079819,3.3897,147.48,147.44,1.3658]
[1726845079820,13.02,147.48,147.44,1.3658]
[1726845080127,13.02,147.48,147.44,7.5599]
[1726845080324,13.02,147.5,147.44,4.1693]
[1726845081622,13.02,147.48,147.44,4.1693]
[1726845081826,3.42738194,147.51,147.44,4.1693]
[1726845081827,13.02,147.46,147.44,2.8035]
[1726845082523,13.02,147.46,147.38,1.3095]
[1726845082725,13.02,147.43,147.39,2.8027]
[1726845082932,13.02,147.45,147.39,2.8027]
[1726845083132,13.02,147.47,147.39,2.8027]
[1726845083427,13.02,147.49,147.4,13.02]
[1726845083821,3.3898,147.48,147.44,3.3906]
[1726845084328,20.85,147.51,147.39,2.8027]
[1726845084526,20.33,147.63,147.43,20.85]
[1726845084828,20.85,147.58,147.45,20.85]
[1726845085028,3.388,147.56,147.51,3.389]
[1726845085220,20.85,147.58,147.48,3.45905301]
[1726845085420,20.85,147.58,147.49,1.2843]
[1726845085627,20.85,147.58,147.5,2.7153]
[1726845085815,20.85,147.56,147.5,2.7153]
[1726845086021,20.85,147.56,147.5,1.3424]
[1726845086227,20.85,147.53,147.5,1.3424]
[1726845086423,20.85,147.53,147.49,1.2843]
[1726845086927,3.3892,147.51,147.49,1.2843]
[1726845087430,3.3884,147.54,147.5,3.3892]
[1726845087632,3.3884,147.54,147.5,4.6882]
[1726845087826,20.85,147.56,147.5,1.299]
[1726845088025,3.3883,147.55,147.5,1.299]
[1726845088332,20.85,147.56,147.5,1.299]
[1726845088637,3.3882,147.55,147.51,3.3889]
[1726845088822,20.85,147.56,147.5,1.299]
[1726845089920,3.3885,147.54,147.5,4.6883]
[1726845090321,20.85,147.56,147.5,1.299]
[1726845090526,3.3887,147.53,147.5,1.299]
[1726845090934,20.85,147.56,147.5,1.299]
[1726845091230,3.3884,147.54,147.5,4.6883]
[1726845091924,20.85,147.56,147.5,1.299]
[1726845092231,20.85,147.53,147.5,1.299]
[1726845092433,3.3893,147.5,147.49,1.2843]
[1726845093535,20.85,147.53,147.49,1.2843]
[1726845094138,20.85,147.56,147.5,3.3891]
[1726845094444,20.85,147.56,147.49,1.2843]
[1726845094445,3.3883,147.55,147.49,1.2843]
[1726845094737,20.85,147.56,147.49,2.6797]
[1726845094925,20.85,147.56,147.5,3.3891]
[1726845095122,3.3886,147.53,147.5,3.3891]
[1726845095333,20.85,147.56,147.5,3.3891]
[1726845095631,3.3885,147.54,147.5,3.3891]
[1726845095831,20.85,147.56,147.49,6.0691]
[1726845096137,20.85,147.56,147.49,2.6797]
[1726845096837,24.2381,147.56,147.52,3.3887]
[1726845097545,3.3881,147.56,147.52,3.3887]
[1726845098224,3.3878,147.57,147.53,3.3885]
[1726845099334,3.3879,147.56,147.52,3.3888]
[1726845100726,20.85,147.58,147.5,1.3524]
[1726845101236,3.3887,147.53,147.5,1.3524]
[1726845101642,20.85,147.55,147.5,1.3524]
[1726845101843,3.3884,147.54,147.5,4.7415]
[1726845102137,20.85,147.58,147.5,1.3524]
[1726845102734,20.85,147.55,147.5,1.3524]
[1726845103531,3.3884,147.54,147.5,4.7417]
[1726845103732,20.85,147.55,147.5,1.3524]
[1726845104236,20.85,147.53,147.49,1.2843]
[1726845104441,20.85,147.53,147.43,1.4135]
[1726845104442,20.85,147.5,147.43,1.4135]
[1726845104637,24.2403,147.46,147.43,1.4135]
[1726845104840,20.85,147.46,147.43,1.4135]
[1726845105232,3.3906,147.45,147.43,1.4135]
[1726845105430,3.3906,147.45,147.42,1.3974]
[1726845105636,20.85,147.46,147.42,1.3974]
[1726845105943,20.85,147.46,147.42,4.7883]
[1726845106240,20.85,147.46,147.42,1.3974]
[1726845106934,3.3905,147.45,147.42,1.3974]
[1726845107338,20.85,147.46,147.42,1.3974]
[1726845108247,24.2404,147.46,147.42,1.3974]
[1726845109242,20.85,147.46,147.42,1.3974]
[1726845109446,20.85,147.49,147.42,1.3974]
[1726845110239,24.2388,147.52,147.42,1.3974]
[1726845110436,24.2388,147.52,147.43,1.2978]
[1726845110437,20.85,147.52,147.43,1.2978]
[1726845110751,20.85,147.52,147.43,2.649]
[1726845110943,3.3893,147.5,147.43,2.649]
[1726845111143,20.85,147.52,147.43,2.649]
[1726845113146,3.3896,147.49,147.45,3.3902]
[1726845113348,3.3896,147.49,147.43,2.649]
[1726845113557,20.85,147.52,147.43,2.649]
[1726845113736,3.3888,147.52,147.43,2.649]
[1726845115348,20.85,147.55,147.43,2.649]
[1726845115349,3.3886,147.53,147.43,2.649]
[1726845116240,20.85,147.57,147.43,2.649]
[1726845116444,41.18,147.57,147.43,2.649]
[1726845116848,3.3893,147.51,147.47,3.3898]
[1726845117156,20.85,147.52,147.43,2.649]
[1726845118253,20.85,147.52,147.44,3.3906]
[1726845118443,20.85,147.52,147.43,2.649]
[1726845118958,3.3898,147.48,147.45,3.3903]
[1726845119251,20.85,147.52,147.43,2.649]
[1726845119458,3.3892,147.51,147.43,2.649]
[1726845119645,20.85,147.52,147.43,2.649]
[1726845120044,3.3897,147.49,147.45,3.3903]
[1726845120253,20.85,147.52,147.45,3.3903]
[1726845120951,3.3896,147.49,147.45,3.3903]
[1726845121143,3.3896,147.49,147.46,3.3902]
[1726845121552,20.85,147.52,147.43,2.649]
[1726845121851,20.85,147.55,147.43,2.649]
[1726845122152,3.3886,147.54,147.43,2.649]
[1726845122541,3.3882,147.55,147.44,20.85]
[1726845122746,20.85,147.57,147.44,20.85]
[1726845123148,20.85,147.57,147.53,3.3885]
[1726845123554,20.85,147.57,147.44,20.85]
[1726845123858,3.3884,147.54,147.51,3.3889]
[1726845124057,20.85,147.57,147.5,3.4205678]
[1726845124256,20.85,147.57,147.51,1.4112]
[1726845124454,20.85,147.57,147.52,3.3887]
[1726845124656,20.85,147.57,147.51,1.4112]
[1726845124953,3.3881,147.56,147.53,3.3886]
[1726845125364,3.3881,147.56,147.51,4.77312562]
[1726845125759,3.3881,147.56,147.52,3.3887]
[1726845126255,3.3881,147.55,147.52,3.3887]
[1726845126459,20.85,147.57,147.51,1.4112]
[1726845126852,3.3879,147.56,147.52,3.3887]
[1726845127047,20.33,147.63,147.51,1.4112]
[1726845127255,20.85,147.6,147.52,2.6168]
[1726845127462,3.3875,147.58,147.52,2.6168]
[1726845127661,3.3875,147.58,147.54,3.3882]
[1726845128053,3.3873,147.59,147.52,2.6168]
[1726845128257,20.85,147.6,147.52,2.6168]
[1726845128763,20.85,147.6,147.55,3.388]
[1726845129866,3.3876,147.58,147.54,3.3883]
[1726845130059,3.3876,147.58,147.52,2.6168]
[1726845130060,20.85,147.6,147.52,2.6168]
[1726845131267,20.85,147.57,147.52,1.3231]
[1726845131965,3.3882,147.55,147.52,4.7119]
[1726845132172,20.85,147.57,147.52,1.3231]
[1726845133965,3.3881,147.56,147.52,4.7118]
[1726845134360,24.2385,147.54,147.51,1.4112]
[1726845134557,20.85,147.54,147.51,1.4112]
[1726845135068,20.85,147.57,147.51,1.4112]
[1726845135457,3.388,147.56,147.51,1.4112]
[1726845135868,20.85,147.57,147.51,1.4112]
[1726845136070,3.3875,147.58,147.54,3.3882]
[1726845136565,3.3876,147.58,147.54,3.3882]
[1726845137070,3.3876,147.58,147.51,1.4112]
[1726845137265,3.3873,147.59,147.51,1.4112]
[1726845137471,3.3873,147.59,147.52,1.3665]
[1726845138071,3.387,147.6,147.53,1.3712]
[1726845138268,20.85,147.62,147.53,1.3712]
[1726845139266,20.85,147.62,147.57,3.3876]
[1726845139675,20.85,147.62,147.53,1.3712]
[1726845139969,138.94361983,147.76,147.53,22.2212]
[1726845140172,20.85,147.65,147.53,1.3712]
[1726845140377,3.3869,147.61,147.53,1.3712]
[1726845140564,20.85,147.63,147.53,1.3712]
[1726845141075,3.3868,147.61,147.58,3.3873]
[1726845141773,20.33,147.71,147.61,3.3867]
[1726845141973,20.85,147.69,147.58,2.7638]
[1726845142875,3.3859,147.65,147.61,3.3866]
[1726845143474,20.85,147.66,147.58,2.7638]
[1726845143982,3.3863,147.63,147.58,2.7638]
[1726845144679,3.3861,147.64,147.58,2.7638]
[1726845145071,3.3864,147.63,147.6,3.3868]
[1726845145270,3.3864,147.63,147.58,2.7638]
[1726845145271,20.85,147.66,147.58,2.7638]
[1726845145478,3.3857,147.66,147.63,3.3862]
[1726845145771,20.85,147.69,147.58,2.7638]
[1726845146178,3.3855,147.67,147.64,3.386]
[1726845146365,3.3855,147.67,147.58,2.7638]
[1726845146366,20.85,147.69,147.58,2.7638]
[1726845146668,3.3856,147.66,147.58,2.7638]
[1726845146865,20.85,147.69,147.58,2.7638]
[1726845147280,3.3857,147.66,147.63,3.3861]
[1726845148178,3.3858,147.65,147.58,2.7638]
[1726845148564,20.85,147.69,147.65,3.3857]
[1726845148781,20.85,147.71,147.58,2.7638]
[1726845149475,3.3853,147.68,147.65,3.3857]
[1726845149979,3.3854,147.67,147.64,3.3859]
[1726845150175,20.85,147.71,147.58,2.7638]
[1726845150579,3.3852,147.68,147.65,3.3857]
[1726845150879,3.3852,147.68,147.58,2.7638]
[1726845151081,3.3855,147.67,147.64,3.3859]
[1726845151775,3.3856,147.66,147.64,3.3859]
[1726845152185,20.85,147.71,147.64,3.3859]
[1726845152674,3.3854,147.67,147.64,3.3859]
[1726845153377,3.3858,147.65,147.59,1.3357]
[1726845153968,20.85,147.69,147.59,1.3357]
[1726845154582,20.85,147.69,147.64,3.386]
[1726845155182,3.3855,147.67,147.64,3.386]
[1726845155986,3.3856,147.66,147.64,3.386]
[1726845156379,20.85,147.69,147.59,1.3357]
[1726845156984,20.85,147.69,147.63,3.3861]
[1726845157180,20.85,147.69,147.59,1.3357]
[1726845157682,3.3858,147.66,147.59,1.3357]
[1726845158283,20.85,147.69,147.59,1.3357]
[1726845158880,20.85,147.69,147.62,3.3865]
[1726845159080,20.85,147.69,147.59,1.3357]
[1726845159275,3.3861,147.64,147.61,3.3865]
[1726845159486,3.3861,147.64,147.59,1.3357]
[1726845159686,20.85,147.69,147.59,1.3357]
[1726845159876,3.3857,147.66,147.63,3.3863]
[1726845160083,3.3857,147.66,147.59,1.3357]
[1726845160686,3.3857,147.66,147.63,3.3861]
[1726845161093,3.3854,147.67,147.59,1.3357]
[1726845161594,13.01,147.68,147.59,1.3357]
[1726845161892,3.3857,147.66,147.64,3.386]
[1726845162079,13.01,147.68,147.64,3.386]
[1726845162283,13.01,147.68,147.59,1.3357]
[1726845162793,3.3857,147.66,147.63,3.3862]
[1726845162988,13.01,147.68,147.63,3.3862]
[1726845163181,13.01,147.7,147.6,13.01]
[1726845163394,3.3853,147.68,147.65,3.3857]
[1726845163699,13.01,147.68,147.6,13.01]
[1726845163993,3.3858,147.66,147.63,3.3862]
[1726845164298,3.3858,147.66,147.6,13.01]
[1726845164497,3.3858,147.66,147.63,3.3861]
[1726845165795,13.01,147.68,147.59,1.3357]
[1726845165989,13.01,147.66,147.59,1.3357]
[1726845166395,13.01,147.66,147.61,3.3866]
[1726845166598,13.01,147.64,147.58,1.3452]
[1726845167001,3.3866,147.62,147.58,1.3452]
[1726845167198,13.01,147.64,147.58,1.3452]
[1726845167592,3.3867,147.62,147.58,1.3452]
[1726845167988,3.3867,147.62,147.6,3.387]
[1726845168695,3.3867,147.62,147.59,3.3871]